Cogmind - Beta 12 @@@ ROGUE MODE // 2023.10.15 @ 16:28:34 Player: Figgis Result: Destroyed by as-59466 with Assembled Maul Performance ------------- Evolutions (0) 0 Regions Visited (4) 800 Robots Destroyed (24) 120 Value Destroyed (849) 849 Prototype IDs (28) 560 Alien Tech Used (0) 0 Bonus (314) 314 TOTAL SCORE: 2643 Bonus ------- Follower Combat Kills 14 Aligned with FarCom 300 Cogmind --------- Core Integrity 0/250 Matter 190/300 Energy 248/250 System Corruption 2% Temperature Cool (0) Movement Walking (130) Location -9/Mines Parts ------- > --- POWER (1) -------- Ion Engine > --- PROPULSION (2) --- Improved Aluminum Leg Makeshift Leg > --- UTILITY (2) ------ Large Storage Unit > --- WEAPON (2) ------- Heavy Assault Rifle Heavy Assault Rifle > --- INVENTORY (15) --- Light Nuclear Core Potential Leg Potential Leg Improved Heat Sink Improved Targeting Computer Propulsion Shielding Mining Laser Plasma Cutter Peak State ------------ > --- POWER ------------ Light Angular Momentum Engine > --- PROPULSION ------- Improved Aluminum Leg Improved Aluminum Leg > --- UTILITY ---------- Large Storage Unit Improved Targeting Computer > --- WEAPON ----------- Heavy Assault Rifle Heavy Assault Rifle > --- INVENTORY -------- Ion Engine Ion Engine Light Nuclear Core Improved Aluminum Leg Improved Aluminum Leg Makeshift Leg Potential Leg Potential Leg Improved Heat Sink Improved Targeting Computer Propulsion Shielding Heavy Assault Rifle Heavy Assault Rifle Mining Laser Plasma Cutter [Rating: 20] Favorites ----------- Power Ion Engine Engine Ion Engine Propulsion Improved Aluminum Leg Leg Improved Aluminum Leg Utility Improved Targeting Computer Storage Large Storage Unit Processor Improved Targeting Computer Weapon Heavy Assault Rifle Energy Gun EM Pulse Gun Ballistic Gun Heavy Assault Rifle Build | -11 -10 -10 -10 -9 ------- Run | Jun Mat Min Exi Min Slots Evolved . | . . . . . Power . | . . . . . Propulsion . | . . . . . Utility . | . . . . . Weapon . | . . . . . Parts Attached 30 | 8 14 1 . 7 Power 5 | 1 1 1 . 2 Engine 5 | 1 1 1 . 2 Core . | . . . . . Reactor . | . . . . . Propulsion 12 | 2 7 . . 3 Treads . | . . . . . Leg 12 | 2 7 . . 3 Wheel . | . . . . . Hover . | . . . . . Flight . | . . . . . Utility 3 | 1 2 . . . Device . | . . . . . Storage 2 | 1 1 . . . Processor 1 | . 1 . . . Hackware . | . . . . . Protection . | . . . . . Artifact . | . . . . . Weapon 10 | 4 4 . . 2 Energy Gun 3 | 3 . . . . Energy Cannon . | . . . . . Ballistic Gun 7 | 1 4 . . 2 Ballistic Cannon . | . . . . . Launcher . | . . . . . Special Weapon . | . . . . . Impact Weapon . | . . . . . Slashing Weapon . | . . . . . Piercing Weapon . | . . . . . Special Melee Weapon . | . . . . . Unidentified Prototypes . | . . . . . Parts Lost 8 | . . . . 8 Power 2 | . . . . 2 Propulsion 3 | . . . . 3 Utility 1 | . . . . 1 Weapon 2 | . . . . 2 Highest Loss Streak 3 | . . . . 3 To Critical Strikes 1 | . . . . 1 Average Slot Usage (%) 98 | . 98 100 100 95 Engine 13 | . 14 14 14 11 Leg 27 | . 28 28 28 25 Storage 14 | . 14 14 14 14 Processor 13 | . 13 14 14 14 Ballistic Gun 27 | . 26 28 28 27 Naked Turns . | . . . . . Heaviest Build 35 | 14 31 35 35 35 Greatest Support 33 | 20 26 26 26 33 Greatest Overweight (x) 2 | . 1 1 1 2 Average Overweight (x) . | . . 1 1 . Largest Inventory Capacity 15 | 8 15 15 15 15 Average Capacity 13 | 6 11 15 15 15 Most Carried 15 | 5 11 15 15 15 Average Carried 11 | 2 8 13 14 10 Final Capacity 15 | 8 15 15 15 15 Final Carried 15 | 2 11 15 15 8 Class Distribution -------------------- 100% | Mutant Dominant Class ---------------- Mutant | -10/Materials Mutant | -10/Mines Mutant | -10/Exiles Mutant | -9/Mines Resources | -11 -10 -10 -10 -9 ----------- Run | Jun Mat Min Exi Min Matter Collected 889 | 225 182 263 . 219 Remotely . | . . . . . Salvage Created 1080 | . 434 297 . 349 Parts 53 | . 30 15 . 8 Haulers Intercepted . | . . . . . Recyclers Shooed . | . . . . . Parts Field Recycled . | . . . . . Retrieved Matter . | . . . . . Parts Self-Destructed . | . . . . . Prevented . | . . . . . Kills | -11 -10 -10 -10 -9 ------- Run | Jun Mat Min Exi Min Combat Hostiles Destroyed 30 | . 8 7 . 15 Guns 30 | . 8 7 . 15 Classes Destroyed 6 | . 3 1 . 2 Operator 1 | . 1 . . . Watcher 3 | . 3 . . . Swarmer 1 | . . 1 . . Grunt 17 | . 8 6 . 3 Demolisher 2 | . . . . 2 Assembled 10 | . . . . 10 Best Kill Streak 4 | . 4 2 . 3 Combat Bots Only 4 | . 4 2 . 3 Max Kills in Single Turn 1 | . 1 1 . 1 Gunslinging . | . . . . . Exploded . | . . . . . Melee . | . . . . . Uniques/NPCs Destroyed . | . . . . . Combat | -11 -10 -10 -10 -9 -------- Run | Jun Mat Min Exi Min Damage Taken 1336 | . 172 152 . 1012 Core 260 | . 44 25 . 191 Absorbed by Shields . | . . . . . Regen/Repaired (Parts) 60 | . 60 . . . Core Remaining (%) 100 | 100 . . . . Volleys Fired 90 | . 27 13 . 50 Largest 2 | . 2 2 . 2 Hottest 46 | . 46 46 . 46 Shots Fired 177 | . 54 26 . 97 Gun 177 | . 54 26 . 97 Cannon . | . . . . . Launcher . | . . . . . Special . | . . . . . Kinetic 177 | . 54 26 . 97 Thermal . | . . . . . Explosive . | . . . . . Electromagnetic . | . . . . . Robot Hit Streak 15 | . 15 9 . 10 Robot Miss Streak 6 | . 6 1 . 4 Penetration Max . | . . . . . Secondary Targets 5 | . 2 1 . 2 Max Gunslinging Chain 1 | . 1 1 . 1 Shots Hit Robots 112 | . 36 18 . 58 Core Hits 59 | . 20 9 . 30 Critical Kills . | . . . . . Critical Parts Destroyed 1 | . . . . 1 Critical Strikes 1 | . . . . 1 Destroy 1 | . . . . 1 Melee Attacks . | . . . . . Impact . | . . . . . Slashing . | . . . . . Piercing . | . . . . . Sneak Attacks . | . . . . . Combat Hostiles . | . . . . . Follow-up Attacks . | . . . . . Damage Inflicted 1680 | . 536 273 . 871 Guns 1680 | . 536 273 . 871 Cannons . | . . . . . Explosions . | . . . . . Melee . | . . . . . Ramming . | . . . . . Kinetic 1680 | . 536 273 . 871 Thermal . | . . . . . Explosive . | . . . . . Electromagnetic . | . . . . . Impact . | . . . . . Slashing . | . . . . . Piercing . | . . . . . Highest Corruption 2 | . . . . 2 Average Corruption 1 | . . . . 1 Corruption Purged . | . . . . . Corruption Blocked . | . . . . . Effects 4 | . . . . 4 Message Errors 2 | . . . . 2 Matter Fused 1 | . . . . 1 Heat Flow Errors 1 | . . . . 1 Overload Shots . | . . . . . Overflow Damage . | . . . . . Projectiles . | . . . . . Explosions . | . . . . . Melee . | . . . . . Knockbacks . | . . . . . Impact . | . . . . . Kinetic . | . . . . . Secondary . | . . . . . Self-Inflicted Damage . | . . . . . Shots . | . . . . . Rammed . | . . . . . Targets Rammed . | . . . . . Kicked . | . . . . . Crushed . | . . . . . Highest Temperature 90 | . 22 19 . 90 Average Temperature 12 | . 5 6 . 17 Received Heat Transfer 443 | . 114 78 . 251 Siege Activations . | . . . . . Robots Corrupted . | . . . . . Combat Hostiles . | . . . . . Parts Fried . | . . . . . Impact Corruptions . | . . . . . Robots Melted . | . . . . . Combat Hostiles . | . . . . . Parts Melted . | . . . . . Heat Transferred . | . . . . . Parts Sabotaged . | . . . . . Parts Stolen . | . . . . . Parts Stripped . | . . . . . Power Chain Reactions . | . . . . . Missiles Intercepted . | . . . . . Alert | -11 -10 -10 -10 -9 ------- Run | Jun Mat Min Exi Min Peak Influence 237 | . 237 204 . 105 Initial 5 | . . 5 . . Average 57 | . 52 62 . 63 Maximum Alert Level 1 | . 1 1 . . Low Security (%) 94 | 100 97 86 . 100 Level 1 5 | . 2 13 . . Level 2 . | . . . . . Level 3 . | . . . . . Level 4 . | . . . . . Level 5 . | . . . . . High Security . | . . . . . Max Security . | . . . . . Squads Dispatched 1 | . 1 . . . Investigation . | . . . . . Extermination . | . . . . . Reinforcement 1 | . 1 . . . Assault . | . . . . . Garrison . | . . . . . Intercept . | . . . . . Searches Triggered . | . . . . . Construction Impeded . | . . . . . Haulers Reinforced . | . . . . . Active Scanning Responses . | . . . . . Cargo Convoy Interrupts . | . . . . . Stealth | -11 -10 -10 -10 -9 --------- Run | Jun Mat Min Exi Min Distress Signals 2 | . 2 . . . Communications Jammed . | . . . . . Distress Signals . | . . . . . Times Spotted 41 | . 16 8 . 17 Peak Tracking Total 4 | . 4 2 . 2 Tactical Retreats 3 | . . 1 . 2 Traps | -11 -10 -10 -10 -9 ------- Run | Jun Mat Min Exi Min Traps Triggered . | . . . . . Indirectly . | . . . . . Trap Hack Attempts . | . . . . . Triggered . | . . . . . Disarmed . | . . . . . Reprogrammed . | . . . . . Reused . | . . . . . Traps Extracted . | . . . . . Installed . | . . . . . Triggered . | . . . . . Machines | -11 -10 -10 -10 -9 ---------- Run | Jun Mat Min Exi Min Machines Disabled . | . . . . . Max in Single Turn . | . . . . . Machines Repaired . | . . . . . Machines Sabotaged . | . . . . . Overloaded Fab Kills . | . . . . . Hacking | -11 -10 -10 -10 -9 --------- Run | Jun Mat Min Exi Min Machines Accessed 11 | . 8 . 3 . Terminals 7 | . 7 . . . Fabricators . | . . . . . Repair Stations 1 | . 1 . . . Recycling Units . | . . . . . Scanalyzers . | . . . . . Garrison Access . | . . . . . Total Hacks 29 | . 26 . 3 . Successful 19 | . 16 . 3 . Failed 10 | . 10 . . . Catastrophic 2 | . 2 . . . Database Lockouts . | . . . . . Manual 8 | . 7 . 1 . Terminals 18 | . 18 . . . Fabricators . | . . . . . Repair Stations 8 | . 8 . . . Recycling Units . | . . . . . Scanalyzers . | . . . . . Garrison Access . | . . . . . Terminal Hacks 13 | . 10 . 3 . Record 2 | . . . 2 . Robot Analysis 2 | . 2 . . . Prototype ID Bank 5 | . 5 . . . Branch Access Points 1 | . 1 . . . Locate Traps 2 | . 2 . . . EX-Prototype ID Bank 1 | . . . 1 . Fabricator Hacks . | . . . . . Repair Station Hacks 6 | . 6 . . . Scan Component 3 | . 3 . . . Repair 3 | . 3 . . . Recycling Unit Hacks . | . . . . . Scanalyzer . | . . . . . Garrison Access Hacks . | . . . . . Unauthorized Hacks . | . . . . . Terminals . | . . . . . Fabricators . | . . . . . Repair Stations . | . . . . . Recycling Units . | . . . . . Scanalyzers . | . . . . . Garrison Access . | . . . . . Data Cores Recovered 1 | . 1 . . . Used . | . . . . . Hacking Detections 6 | . 6 . . . Full Trace Events . | . . . . . Feedback Events . | . . . . . Feedback Blocked . | . . . . . Robot Schematics Acquired . | . . . . . Robots Built . | . . . . . Authchips . | . . . . . Time . | . . . . . Total Robot Build Rating . | . . . . . Part Schematics Acquired . | . . . . . Parts Built . | . . . . . Authchips . | . . . . . Time . | . . . . . Total Part Build Rating . | . . . . . Parts Repaired 3 | . 3 . . . Time 90 | . 90 . . . Parts Recycled . | . . . . . Recycled Matter . | . . . . . Retrieved Matter . | . . . . . Retrieved Components . | . . . . . Parts Scanalyzed . | . . . . . Part Schematics Acquired . | . . . . . Parts Damaged . | . . . . . Bothacking | -11 -10 -10 -10 -9 ------------ Run | Jun Mat Min Exi Min Used RIF Installer . | . . . . . Robots Hacked . | . . . . . Non-combat . | . . . . . Combat . | . . . . . Robot Hacks Applied . | . . . . . Relay Couplers Released . | . . . . . Fabnet Peak Effective % . | . . . . . Robots Rewired . | . . . . . Allies Hacked . | . . . . . Hacks Repelled . | . . . . . Allies | -11 -10 -10 -10 -9 -------- Run | Jun Mat Min Exi Min Total Allies 2 | . . 2 . . Largest Group 2 | . . 2 . . Highest-Rated Group 47 | . . 47 . . Highest-Rated Ally 31 | . . 31 . . Total Orders . | . . . . . Ally Attacks 10 | . . 10 . . Total Damage 85 | . . 85 . . Kills 2 | . . 2 . . Allies Corrupted . | . . . . . Allies Melted . | . . . . . Intel | -11 -10 -10 -10 -9 ------- Run | Jun Mat Min Exi Min Robot Analysis Total 2 | . 2 . . . Derelict Logs Recovered 2 | . . 1 . 1 Drone Launches . | . . . . . Drone Recoveries . | . . . . . Exploration | -11 -10 -10 -10 -9 ------------- Run | Jun Mat Min Exi Min Turns Passed 3296 | 47 1062 887 739 561 Spaces Moved 1667 | 33 589 442 388 215 Core 16 | 16 . . . . Treads . | . . . . . Legs 1651 | 17 589 442 388 215 Wheels . | . . . . . Hover . | . . . . . Flight . | . . . . . Fastest Speed 50 | 50 120 190 190 130 Average Speed 168 | 86 141 190 190 170 Slowest Speed 260 | 120 190 190 190 260 Overloaded Moves . | . . . . . Propulsion Burnouts . | . . . . . Robots Hopped . | . . . . . Cave-ins Triggered . | . . . . . Exploration Rate (%) 61 | 3 96 88 71 47 Regions Visited 4 Branch Regions 3 Pre-discovered Areas 3 | . . 1 1 1 Known Exits Taken 1 | . 1 . . . Unknown Exits Taken 3 | 1 . 1 1 . Scrap Searched 2 | . . 1 . 1 Spaces Dug . | . . . . . Terrain Destroyed . | . . . . . Melee . | . . . . . Projectile . | . . . . . AOE . | . . . . . Terrain Rammed . | . . . . . Walls Destroyed . | . . . . . Machines Disabled . | . . . . . Actions | -11 -10 -10 -10 -9 --------- Run | Jun Mat Min Exi Min Total 1986 | 49 768 464 391 314 Wait 154 | 4 104 4 . 42 Move 1663 | 32 588 441 387 215 Hop . | . . . . . Pick Up 31 | 5 20 4 2 . Fast Attach 3 | 3 . . . . Attach 14 | 3 4 . . 7 Detach . | . . . . . Swap 13 | 2 10 1 . . Drop 18 | . 15 1 2 . Fire 90 | . 27 13 . 50 Melee . | . . . . . Ram . | . . . . . Kick . | . . . . . Crush . | . . . . . Escape Stasis . | . . . . . Rewire . | . . . . . Trap . | . . . . . Miscellaneous . | . . . . . Route ------- -11/Junkyard -10/Materials (discovered 4 exits: [*Mat x3] / *Min) -10/Mines (discovered 3 exits: [*Mat x2] / *Exi) -10/Exiles -9/Mines History --------- Turn | Location | Event 14 | -11/Junkyard | Discovered new exit (range 15) 48 | -11/Junkyard | Entered Materials 272 | -10/Materials | Discovered new exit (range 6) 310 | -10/Materials | Build established: Mutant 464 | -10/Materials | Discovered new exit (range 9) 561 | -10/Materials | Identified exit to Mines 770 | -10/Materials | Discovered new exit (range 16) 966 | -10/Materials | Repaired Hvy. Assault Rifle 1000 | -10/Materials | Repaired Hvy. Assault Rifle 1028 | -10/Materials | Repaired Ion Engine 1110 | -10/Materials | Entered Mines 1222 | -10/Mines | Learned location of Storage (-7) 1232 | -10/Mines | Discovered new exit (range 8) 1387 | -10/Mines | Discovered new exit (range 4) 1748 | -10/Mines | Learned Materials trap positions 1767 | -10/Mines | Deemed a non-threat by the Exiles lab entrance 1989 | -10/Mines | Discovered new exit (range 5) 1997 | -10/Mines | Entered Exiles 2045 | -10/Exiles | Met 8R-AWN 2079 | -10/Exiles | Met EX-HEX 2159 | -10/Exiles | Met EX-DEC 2296 | -10/Exiles | Learned location of Zion (-6) 2334 | -10/Exiles | Met EX-BIN 2376 | -10/Exiles | Aligned with FarCom system 2377 | -10/Exiles | Given EX-Vault access code 2421 | -10/Exiles | Opened EX-Vault 2437 | -10/Exiles | Found Potential Leg 2440 | -10/Exiles | Found Potential Leg 2483 | -10/Exiles | Warned to stay clear of 0b10 Research branches 2662 | -10/Exiles | Discovered new exit (range 12) 2736 | -10/Exiles | Left Exiles lab with Potential Leg 2736 | -10/Exiles | Entered Mines 2808 | -9/Mines | Assembled infested the area 2813 | -9/Mines | Assisted by a Guerilla fighting off Assembled 2829 | -9/Mines | Core integrity fell below 50% 2859 | -9/Mines | Lost 3 parts (1p1n1w) 3005 | -9/Mines | Core integrity fell below 20% 3297 | -9/Mines | Destroyed by as-59466 with Assembled Maul Last Messages --------------- 03168_ Imp. Aluminum Leg destroyed. 03168_ Destroyed Asb. Hover Unit. 03170_ as-08026 destroyed. 03182_ as-66527 destroyed. 03186_ Acquired 11 matter. 03189_ Acquired 20 matter. 03230_ System corrupted: Heat flow error (+109). 03239_ Acquired derelict log, extracted data. World map confirmed: -6/Zion. 03241_ Acquired 12 matter. 03264_ Searching scrap... 03264_ Found Terrain Scan Processor. 03264_ Found Med. Storage Unit. 03264_ Found Arm. Wheel. 03264_ Found 35 Matter. 03265_ Acquired 35 matter. 03291_ Destroyed Asb. F-torch. 03291_ as-83498 destroyed. 03291_ Imp. Targeting Computer destroyed. 03291_ System corrupted by crushing effect (+1). Map ----- +----------------------------------------------------+ | | | | | | | | | ?????????????????????????????????????????????????? | | ?????????????????????????????????????????????????? | | ?????????????????????????????????????????????????? | | ?????????????????????????????????????????????????? | | ?????????????????????????????????????????????????? | | ?????????????????????????????????????????????????? | | ?????????????????????????????????????????????????? | | ?????????????????????????????????????????????????? | | ?????????????????????????????????????????????????? | | ?????????????????????????????????????????????????? | | ?????????????????????????????????????????????????? | | ?????????????????????????????????????????????????? | | ?????????????????????????????????????????????????? | | ?????????????????????????????????????????????????? | | ?????????????????????????????????????????????????? | | ?????????????????????????????????????????????????? | | ?????????????????????????????????????????????????? | | ?????????????????????????????????????????????????? | | ?????????????????????????????????????????????????? | | ?????????????????????????????????????????????????? | | ??????????????????????############???????????????? | | ??????????????????????# @ % %u????????? | | ????????????????????### a#########???????????????? | | ?????????#??????????# #???????????????????????? | | ?????????# ?????????# #???????????????????????? | | ?????????# #????????# ##???????????????????????? | | ????????## #??###### #???????????????????????? | | ????????# ###!%## !=##??????????????????????? | | ????????# = !##?????????????????????? | | ????????# #?????????????????????? | | ????????## #????????????????????? | | ?????????#### ## #????????????????????? | | ????????????## ##### ##????????????????????? | | ???############ #???## ###?????????????????????? | | ??## ## ####?# ###???????????????????????? | | ??# " #?# #?????#???????????????????? | | ?## #?#!%????? ???????????????????? | | ?# ### ###!#?###????? ?????########??????? | | ## ##?## % ##?# #????????? ????## ???????? | | # ##??##=##??# #????????# #??## ????????? | | #???# #???#|#????????# #??# ?????????? | | ##??# #???#!#????????# #??# %=*??????????? | | #### #####%#????????# #??? !%#??????????? | | ! ####????# #?###]%=##?????????? | | """ #???# ## !% #?????????? | | ####### """ #### # # ###????????? | +----------------------------------------------------+ Best States ------------- Heat Dissipation 25 Energy Generation 18 Energy Capacity 250 Matter Stores 300 Matter Capacity 300 Sight Range 16 Terrain Scan Density 10 Evasion (%) 55 Targeting Accuracy 6 Item Schematics ----------------- None Robot Schematics ------------------ None Fabricated ------------ Nothing Alien Tech Used ----------------- None Achievements -------------- None Challenges ------------ None Game ------ Seed BoreFissionNanovents Manual? 0 Play Time 00:17:13 Cumulative 58.9 hours Start 2023.10.15 @ 16:14:13 End 2023.10.15 @ 16:28:34 Sessions 1 Manual Loads 0 Difficulty Rogue Special Mode None Game No. 103 Rogue 100 Adventurer 3 Explorer 0 Win Type - Total 0 Types 0/0/0/0/0/0/0/0/0 Lore% 32 Gallery% 47 Achievement% 33 Wizard Run 0 Options --------- ASCII 0 Keyboard 0 Movement Mouse Keybinds 0 Fullscreen 2 Font 18/SmallcapsGlow Map View 76x50 Tactical HUD 1 Map Filters NONE Filters NONE Steam 1 RUN: 3a446778-a517-4b15-af3a-b6f033f67d96